bitfinex/quotes_BTCUSD_20250225
["timestamp","ask_amount","ask_price","bid_price","bid_amount"]
[1740493880711,0.468727,88901.0,88853.0,0.09819728]
[1740493880928,0.47793262,88901.0,88851.0,0.045]
[1740493881302,0.47878149,88901.0,88851.0,0.045]
[1740493881679,0.47878149,88901.0,88858.0,0.09042051]
[1740493881822,0.47793262,88901.0,88858.0,0.09042051]
[1740493882563,0.59178958,88901.0,88858.0,0.09042051]
[1740493883009,0.47793262,88901.0,88867.0,0.09042051]
[1740493883852,0.47702993,88901.0,88867.0,0.09042051]
[1740493884244,0.69157078,88901.0,88851.0,0.045]
[1740493884463,0.59157078,88901.0,88859.0,0.09042051]
[1740493884665,0.468802,88861.0,88859.0,0.09042051]
[1740493885331,0.58265896,88861.0,88843.0,0.0008503]
[1740493885572,0.58265896,88861.0,88802.0,0.168914]
[1740493885573,0.168889,88816.0,88802.0,0.168914]
[1740493885787,0.3,88845.0,88813.0,0.168894]
[1740493885788,0.225116,88843.0,88813.0,0.168894]
[1740493885985,0.525111,88845.0,88826.0,0.09042051]
[1740493886225,0.3,88845.0,88815.0,0.00157592]
[1740493886432,0.3,88829.0,88811.0,0.0008506]
[1740493886597,0.1,88886.0,88812.0,0.00157605]
[1740493886961,0.00860465,88876.0,88823.0,0.01454085]
[1740493887109,0.3,88827.0,88825.0,0.09694085]
[1740493887309,0.225132,88837.0,88825.0,0.09694085]
[1740493887310,0.033852,88853.0,88825.0,0.09694085]
[1740493887537,0.00157331,88862.0,88825.0,0.0824]
[1740493887696,0.168868,88827.0,88825.0,0.0824]
[1740493887904,0.3,88831.0,88825.0,0.0824]
[1740493888099,0.033848,88862.0,88826.0,0.12828838]
[1740493888344,0.00157331,88879.0,88827.0,0.01454085]
[1740493888495,0.225099,88850.0,88829.0,0.01454085]
[1740493888696,0.225027,88878.0,88832.0,0.01454085]
[1740493888896,0.00157331,88877.0,88836.0,0.01454085]
[1740493889102,0.225014,88883.0,88838.0,0.01454085]
[1740493889358,0.09042051,88881.0,88835.0,0.0498]
[1740493889578,0.468802,88861.0,88860.0,0.0008513]
[1740493889782,0.225047,88870.0,88860.0,0.0008513]
[1740493890014,0.09780433,88900.0,88863.0,0.01454085]
[1740493890251,0.09780433,88900.0,88864.0,0.16204753]
[1740493890445,0.09780433,88888.0,88864.0,0.16204753]
[1740493890657,0.09780433,88888.0,88871.0,0.01454085]
[1740493890894,0.09780433,88888.0,88873.0,0.01454085]
[1740493891116,0.09780433,88888.0,88887.0,0.18329385]
[1740493891320,0.224906,88926.0,88888.0,0.01454085]
[1740493891459,0.224869,88941.0,88895.0,0.12828838]
[1740493891812,0.09042051,88961.0,88907.0,0.11454085]
[1740493891949,0.168637,88948.0,88934.0,0.168664]
[1740493892159,0.1703646,88935.0,88934.0,0.01454085]
[1740493892561,0.0017026,88935.0,88934.0,0.29695238]
[1740493892838,0.0017026,88935.0,88934.0,0.12828838]
[1740493893051,0.0017026,88935.0,88934.0,0.29695238]
[1740493893382,0.0191535,88969.0,88935.0,0.01454085]
[1740493893566,0.3,88952.0,88937.0,0.01454085]
[1740493893764,0.168626,88955.0,88944.0,0.01454085]
[1740493894010,0.09199382,88976.0,88930.0,0.0766]
[1740493894336,0.09042051,88954.0,88914.0,0.0777]
[1740493894485,0.00157331,88965.0,88915.0,0.11374753]
[1740493894692,0.09042051,88956.0,88915.0,0.11374753]
[1740493894896,0.168698,88917.0,88915.0,0.11374753]
[1740493895444,0.224924,88919.0,88908.0,0.0476]
[1740493895445,0.468711,88909.0,88908.0,0.0476]
[1740493895644,0.3,88910.0,88884.0,0.0458]
[1740493895855,0.3,88910.0,88897.0,0.0015746]
[1740493896033,0.3,88910.0,88897.0,0.11374753]
[1740493896237,0.3,88910.0,88896.0,0.1786]
[1740493896439,0.3,88910.0,88884.0,0.0458]
[1740493896440,0.168757,88885.0,88884.0,0.0458]
[1740493896706,0.168757,88885.0,88851.0,0.19042051]
[1740493896707,0.168789,88868.0,88867.0,0.01368]
[1740493896868,0.468797,88864.0,88863.0,0.0469]
[1740493897094,0.468797,88864.0,88822.0,0.1008513]
[1740493897095,0.468802,88861.0,88841.0,0.0469]
[1740493897320,0.468839,88842.0,88841.0,0.0469]
[1740493897774,0.3,88842.0,88841.0,0.0469]
[1740493898287,0.168849,88837.0,88823.0,0.0828]
[1740493898505,0.3,88839.0,88824.0,0.11374753]
[1740493898711,0.01960953,88864.0,88824.0,0.11374753]
[1740493898712,0.168848,88837.0,88824.0,0.11374753]
[1740493899014,0.168848,88837.0,88825.0,0.168871]
[1740493899237,0.3,88839.0,88826.0,0.11374753]
[1740493899512,0.225098,88850.0,88822.0,0.0008513]
[1740493899513,0.3,88829.0,88822.0,0.0008513]
[1740493899722,0.35720753,88864.0,88822.0,0.0008513]
[1740493899867,0.225078,88858.0,88822.0,0.0008513]
[1740493900214,0.168856,88833.0,88822.0,0.0008513]
[1740493900392,0.00157331,88857.0,88823.0,0.168874]
[1740493900393,0.22511,88846.0,88823.0,0.168874]
[1740493900593,0.168854,88834.0,88822.0,0.1697273]
[1740493900808,0.22511,88846.0,88822.0,0.0008513]
[1740493901034,0.22511,88846.0,88823.0,0.168875]
[1740493901356,0.01960953,88864.0,88824.0,0.01454085]
[1740493901357,0.168856,88833.0,88824.0,0.01454085]
[1740493901614,0.3,88837.0,88822.0,0.0008513]
[1740493901811,0.01960953,88864.0,88823.0,0.12986426]
[1740493902041,0.01960953,88864.0,88823.0,0.11532341]
[1740493902243,0.00157331,88863.0,88822.0,0.0008513]
[1740493902452,0.30157331,88874.0,88822.0,0.0008513]
[1740493902657,0.3,88846.0,88823.0,0.01454085]
[1740493902903,0.168875,88823.0,88822.0,0.0008513]
[1740493903074,0.3,88836.0,88822.0,0.0008513]
[1740493903705,0.0192652,88874.0,88835.0,0.09042051]
[1740493903948,0.0192652,88874.0,88841.0,0.168839]
[1740493904164,0.03384,88905.0,88845.0,0.01454085]
[1740493904377,0.01894626,88897.0,88848.0,0.01454085]
[1740493904585,0.01689205,88914.0,88847.0,0.1274]
[1740493904586,0.01846536,88914.0,88882.0,0.168761]
[1740493904809,0.077603,88935.0,88884.0,0.01454085]
[1740493904810,0.00741109,88933.0,88884.0,0.01454085]
[1740493905024,0.00824201,88904.0,88886.0,0.0489]
[1740493905465,0.3,88886.0,88861.0,0.0489]
[1740493905675,0.225051,88869.0,88861.0,0.0489]
[1740493905881,0.3,88886.0,88862.0,0.12828838]
[1740493906097,0.3,88868.0,88840.0,0.0489]
[1740493906319,0.1,88904.0,88840.0,0.0489]
[1740493906529,0.01454085,88901.0,88840.0,0.0489]
[1740493906745,0.16884,88841.0,88840.0,0.0489]
[1740493906958,0.3,88891.0,88840.0,0.0489]
[1740493907178,0.3,88859.0,88840.0,0.0489]
[1740493907394,0.3,88844.0,88840.0,0.0489]
[1740493907572,0.168842,88840.0,88839.0,0.17864]
[1740493907807,0.468842,88840.0,88839.0,0.17864]
[1740493911575,0.468875,88823.0,88822.0,0.0008513]
[1740493913801,0.225009,88885.0,88829.0,0.168863]
[1740493914010,0.0806,88888.0,88835.0,0.09042051]
[1740493914011,0.00157331,88884.0,88835.0,0.09042051]
[1740493914239,0.16885,88836.0,88835.0,0.09042051]
[1740493914445,0.00825898,88884.0,88836.0,0.01454085]
[1740493914650,0.00825898,88884.0,88833.0,0.0136]
[1740493914651,0.168875,88823.0,88807.0,0.0776]
[1740493914856,0.468875,88823.0,88808.0,0.09042051]
[1740493915793,0.3,88823.0,88812.0,0.00157626]
[1740493915997,0.468875,88823.0,88800.0,0.20004]
[1740493916423,0.3,88823.0,88811.0,0.2295728]
[1740493916644,0.3,88823.0,88813.0,0.01368]
[1740493916857,0.468875,88823.0,88813.0,0.01368]
[1740493917070,0.033854,88874.0,88820.0,0.225173]
[1740493917279,0.01076188,88870.0,88814.0,0.225187]
[1740493917489,0.168874,88824.0,88813.0,0.06358]
[1740493917663,0.168874,88824.0,88813.0,0.232474]
[1740493917903,0.168875,88823.0,88813.0,0.06358]
[1740493918493,0.168873,88825.0,88813.0,0.06358]
[1740493918710,0.468875,88823.0,88811.0,0.0043778]
[1740493919124,0.3,88823.0,88811.0,0.0043778]
[1740493919335,0.3,88823.0,88814.0,0.225187]
[1740493919542,0.3,88823.0,88822.0,0.01539215]
[1740493919923,0.337575,88869.0,88823.0,0.01454085]
[1740493920149,1.21534551,88895.0,88827.0,0.0474]
[1740493920150,0.00157331,88868.0,88827.0,0.0474]
[1740493920361,0.00157331,88868.0,88828.0,0.01454085]
[1740493920782,0.00824959,88867.0,88829.0,0.11374753]
[1740493920993,0.00824959,88867.0,88838.0,0.01454085]
[1740493921209,0.00824959,88867.0,88866.0,0.32165436]
[1740493921416,0.09836743,88902.0,88878.0,0.01454085]
[1740493921629,0.09836743,88902.0,88870.0,0.01454085]
[1740493921831,0.09836743,88902.0,88880.0,0.01454085]
[1740493922008,0.09836743,88902.0,88882.0,0.01454085]
[1740493922279,0.09836743,88902.0,88901.0,0.168727]
[1740493922503,0.09836743,88902.0,88901.0,0.34361538]
[1740493922705,0.26709243,88902.0,88901.0,0.2466]
[1740493922911,0.26709243,88902.0,88876.0,0.047]
[1740493922912,0.09836743,88902.0,88876.0,0.047]
[1740493923120,0.224969,88901.0,88877.0,0.00157497]
[1740493923323,0.09836743,88902.0,88877.0,0.00157497]
[1740493923324,0.09836743,88902.0,88877.0,0.1153225]
[1740493923529,0.09836743,88902.0,88877.0,0.11374753]
[1740493923746,0.168754,88887.0,88878.0,0.01372]
[1740493923950,0.168756,88886.0,88879.0,0.01454085]
[1740493924156,0.3,88879.0,88867.0,0.2]
[1740493924366,0.3,88879.0,88869.0,0.22505]
[1740493924569,0.0016966,88933.0,88871.0,0.01454085]
[1740493924772,0.01285499,88931.0,88877.0,0.01454085]
[1740493924973,0.31285499,88931.0,88886.0,0.01454085]
[1740493925175,0.3,88894.0,88878.0,0.11374753]
[1740493925307,0.3,88888.0,88878.0,0.11374753]
[1740493925512,0.3,88888.0,88879.0,0.01454085]
[1740493925774,0.468766,88880.0,88879.0,0.02038428]
[1740493926840,0.00829389,88931.0,88879.0,0.03410428]
[1740493927051,0.00157331,88926.0,88880.0,0.11532245]
[1740493927262,0.3,88916.0,88881.0,0.01454085]
[1740493927513,0.001703,88935.0,88896.0,0.01454085]
[1740493927701,0.001703,88935.0,88903.0,0.01454085]
[1740493927915,0.001703,88935.0,88909.0,0.01454085]
[1740493928119,0.001703,88935.0,88921.0,0.224916]
[1740493928369,0.001703,88935.0,88922.0,0.01372]
[1740493928571,0.001703,88935.0,88922.0,0.1290416]
[1740493928775,0.3,88929.0,88922.0,0.12746753]
[1740493928977,0.168668,88932.0,88923.0,0.01454085]
[1740493929277,0.001703,88935.0,88926.0,0.224906]
[1740493929475,0.001703,88935.0,88925.0,0.01454085]
[1740493929678,0.001703,88935.0,88922.0,0.01372]
[1740493929861,0.524893,88931.0,88906.0,0.0828]
[1740493930067,0.001703,88935.0,88914.0,0.11374753]
[1740493930268,0.001703,88935.0,88915.0,0.01454085]
[1740493930621,0.001703,88935.0,88916.0,0.00157417]
[1740493930838,0.001703,88935.0,88916.0,0.01454085]
[1740493931017,0.001703,88935.0,88916.0,0.12828838]
[1740493931219,0.001703,88935.0,88906.0,0.0828]
[1740493931422,0.001703,88935.0,88904.0,0.02038428]
[1740493931638,0.001703,88935.0,88905.0,0.11374753]
[1740493931849,0.168702,88914.0,88906.0,0.01537442]
[1740493932048,0.168705,88913.0,88906.0,0.0138]
[1740493932255,0.168713,88909.0,88904.0,0.02038428]
[1740493932507,0.168716,88907.0,88899.0,0.01454085]
[1740493932656,0.226588,88935.0,88901.0,0.168727]
[1740493932857,0.001703,88935.0,88902.0,0.12828838]
[1740493933139,0.001703,88935.0,88905.0,0.449918]
[1740493933415,0.001703,88935.0,88915.0,0.01454085]
[1740493933666,0.001703,88935.0,88917.0,0.01454085]
[1740493933870,0.001703,88935.0,88919.0,0.168692]
[1740493934075,0.224887,88934.0,88920.0,0.11374753]
[1740493934273,0.168676,88928.0,88921.0,0.01454085]
[1740493934618,0.001703,88935.0,88893.0,0.2]
[1740493934842,0.08939885,88952.0,88894.0,0.11374753]
[1740493935064,0.224915,88923.0,88894.0,0.11374753]
[1740493935291,0.168744,88892.0,88891.0,0.0471]
[1740493935716,0.168744,88892.0,88876.0,0.02030569]
[1740493935717,0.168751,88888.0,88876.0,0.02030569]
[1740493935938,0.1,88946.0,88877.0,0.00157492]
[1740493936142,0.09403402,88949.0,88901.0,0.00596598]
[1740493936352,0.09403402,88940.0,88892.0,0.00596598]
[1740493936525,0.1,88942.0,88899.0,0.00596598]
[1740493936729,0.1,88939.0,88889.0,0.00596598]
[1740493936930,0.1,88939.0,88849.0,0.12030569]
[1740493936931,0.168751,88888.0,88885.0,0.00596598]
[1740493937109,0.168751,88888.0,88870.0,0.0138]
[1740493937110,0.168751,88888.0,88887.0,0.18456598]
[1740493937533,0.09403402,88943.0,88892.0,0.00596598]
[1740493937733,0.168742,88893.0,88892.0,0.00596598]
[1740493937982,0.449767,88935.0,88899.0,0.00596598]
[1740493938187,0.1,88947.0,88887.0,0.1786]
[1740493938188,0.224897,88930.0,88906.0,0.00596598]
[1740493938389,0.168704,88913.0,88912.0,0.00596598]
[1740493938596,0.0016978,88933.0,88912.0,0.00596598]
[1740493938804,0.0016978,88933.0,88925.0,0.00596598]
[1740493939009,0.168671,88930.0,88929.0,0.00596598]
[1740493939210,0.168689,88921.0,88920.0,0.00596598]
[1740493939359,0.168683,88925.0,88922.0,0.00596598]
[1740493939564,0.22489,88932.0,88929.0,0.00596598]
[1740493939770,0.168671,88930.0,88929.0,0.00596598]
[1740493940375,0.224893,88931.0,88915.0,0.00596598]
[1740493940578,0.168683,88924.0,88923.0,0.00596598]
[1740493940780,0.168683,88924.0,88909.0,0.0783]
[1740493940781,0.0016978,88933.0,88918.0,0.00596598]
[1740493941091,0.1687,88915.0,88914.0,0.00596598]
[1740493941265,0.0016978,88933.0,88921.0,0.00596598]
[1740493941534,0.168683,88924.0,88923.0,0.00596598]
[1740493941772,0.22489,88932.0,88927.0,0.00596598]
[1740493941940,0.168698,88916.0,88915.0,0.00596598]
[1740493942166,0.168704,88913.0,88912.0,0.00596598]
[1740493942419,0.224906,88926.0,88910.0,0.00596598]
[1740493942619,0.168696,88917.0,88916.0,0.00596598]
[1740493942832,0.168702,88914.0,88913.0,0.00596598]
[1740493942986,0.168688,88922.0,88920.0,0.00596598]
[1740493943188,0.168689,88921.0,88920.0,0.00596598]
[1740493943398,0.0016978,88933.0,88929.0,0.00596598]
[1740493943603,0.0016978,88933.0,88932.0,0.23667483]
[1740493943805,0.0016978,88933.0,88932.0,0.18175436]
[1740493944364,0.0016978,88933.0,88932.0,0.35042236]
[1740493944565,0.0016978,89002.0,88959.0,0.00596598]
[1740493944763,0.168607,88964.0,88963.0,0.00596598]
[1740493945395,0.16862,88957.0,88956.0,0.02050683]
[1740493945598,0.02614563,88991.0,88957.0,0.00596598]
[1740493946084,0.168618,88958.0,88957.0,0.00596598]
[1740493946252,0.168601,88967.0,88966.0,0.00596598]
[1740493946470,0.02614563,88991.0,88974.0,0.00596598]
[1740493946608,0.0017012,88991.0,88986.0,0.00596598]
[1740493946834,0.0017012,88991.0,88976.0,0.00596598]
[1740493947066,0.0017012,88991.0,88979.0,0.00596598]
[1740493947267,0.168569,88984.0,88983.0,0.00596598]
[1740493948136,0.168569,88984.0,88976.0,0.01325393]
[1740493948137,0.168582,88977.0,88976.0,0.01325393]
[1740493948338,0.0017012,88991.0,88986.0,0.00596598]
[1740493948564,0.168563,88987.0,88986.0,0.00596598]
[1740493948763,0.0017012,88991.0,88986.0,0.00596598]
[1740493948963,0.0017012,88991.0,88977.0,0.01283715]
[1740493948964,0.0017012,88991.0,88990.0,0.02050683]
[1740493949209,0.2263606,89022.0,89001.0,0.17450298]
[1740493949210,0.0016966,89022.0,89001.0,0.17450298]
[1740493949416,0.0016966,89022.0,89001.0,0.31604529]
[1740493949828,0.0016966,89022.0,89018.0,0.17447098]
[1740493950198,0.0016966,89022.0,89018.0,0.38425851]
[1740493950370,0.0016966,89022.0,89018.0,0.44699936]
[1740493950542,0.0016966,89022.0,89021.0,0.17446498]
[1740493950744,0.1701936,89022.0,89021.0,0.43724753]
[1740493950944,0.0016966,89022.0,89021.0,0.44321351]
[1740493951160,0.0016966,89022.0,89021.0,1.00055436]
[1740493951361,0.1,89082.0,89021.0,1.00055436]
[1740493951362,0.0017022,89100.0,89060.0,0.00596598]
[1740493951563,0.224533,89074.0,89069.0,0.00596598]
[1740493951769,0.0017022,89100.0,89075.0,0.00596598]
[1740493951929,0.0017022,89100.0,89069.0,0.3235]
[1740493951930,0.224522,89078.0,89069.0,0.3235]
[1740493952131,0.168404,89071.0,89070.0,0.00596598]
[1740493952557,0.168394,89077.0,89075.0,0.00596598]
[1740493952767,0.0017022,89091.0,89075.0,0.00596598]
[1740493952964,0.168465,89076.0,89075.0,0.00596598]
[1740493953167,0.168406,89070.0,89069.0,0.32946598]
[1740493953372,0.168406,89070.0,89069.0,0.3235]
[1740493953801,0.468406,89070.0,89069.0,0.3235]
[1740493955581,0.468406,89070.0,89032.0,0.3235]
[1740493955582,0.3,89060.0,89032.0,0.3235]
[1740493955789,0.168437,89054.0,89053.0,0.2]
[1740493956188,0.468437,89054.0,89053.0,0.2]
[1740493956568,0.224516,89081.0,89056.0,0.00596598]
[1740493956760,0.168448,89048.0,89047.0,0.32946598]
[1740493956966,0.42193402,89099.0,89047.0,0.32946598]
[1740493956967,0.3,89057.0,89056.0,0.00596598]
[1740493957188,0.224512,89082.0,89075.0,0.00596598]
[1740493957489,0.168387,89081.0,89075.0,0.00596598]
[1740493957656,0.22451,89083.0,89075.0,0.00596598]
[1740493957866,0.168395,89077.0,89075.0,0.00596598]
[1740493958074,0.224487,89092.0,89075.0,0.49161351]
[1740493958315,0.0017006,89109.0,89075.0,0.49161351]
[1740493958316,0.0017006,89109.0,89075.0,1.20281051]
[1740493958518,0.0017006,89109.0,89075.0,1.03441351]
[1740493958816,0.224501,89087.0,89075.0,1.22844753]
[1740493958953,0.224484,89093.0,89075.0,1.23441351]
[1740493959159,0.168465,89076.0,89075.0,1.23441351]
[1740493959377,0.0017006,89109.0,89079.0,0.00596598]
[1740493959583,0.0017006,89109.0,89079.0,0.11971351]
[1740493959785,0.0017006,89109.0,89075.0,0.9147]
[1740493959786,0.168395,89076.0,89075.0,0.9147]
[1740493960017,0.168395,89076.0,89075.0,1.03441351]
[1740493960238,0.468395,89076.0,89075.0,0.92066598]
[1740493961023,0.3,89076.0,89075.0,1.08906298]
[1740493961296,0.0017012,89080.0,89079.0,0.00596598]
[1740493961518,0.0017012,89080.0,89079.0,0.11971351]
[1740493961756,0.1700882,89080.0,89079.0,0.00596598]
[1740493961960,0.0017012,89080.0,89079.0,1.15440251]
[1740493962161,0.0017012,89080.0,89079.0,1.16894336]
[1740493962371,0.0017012,89080.0,89079.0,0.98601351]
[1740493963228,0.0017012,89080.0,89079.0,1.15440251]
[1740493963368,0.0017022,89091.0,89090.0,0.17433498]
[1740493963572,0.0017022,89091.0,89090.0,0.98758449]
[1740493963811,0.0017022,89091.0,89090.0,0.98601351]
[1740493964247,0.224351,89146.0,89108.0,0.17430098]
[1740493964428,0.004499,89151.0,89122.0,0.00596598]
[1740493964625,0.02370366,89148.0,89122.0,0.00596598]
[1740493964788,0.224366,89140.0,89108.0,0.8663]
[1740493964991,0.168293,89130.0,89122.0,0.00596598]
[1740493965170,0.02370366,89148.0,89121.0,0.00596598]
[1740493965171,0.224396,89128.0,89121.0,0.00596598]
[1740493965372,0.0008473,89170.0,89108.0,0.8663]
[1740493965373,0.0008473,89170.0,89122.0,0.11971351]
[1740493965594,0.224353,89145.0,89122.0,0.11971351]
[1740493965813,0.168278,89139.0,89122.0,0.11971351]
[1740493965995,0.224353,89145.0,89122.0,0.11971351]
[1740493966250,0.224346,89148.0,89122.0,0.11971351]
[1740493966465,0.224375,89137.0,89122.0,0.11971351]
[1740493966820,0.1817332,89123.0,89122.0,0.44321351]
[1740493966974,0.0134272,89123.0,89122.0,0.44321351]
[1740493967181,0.0134272,89123.0,89122.0,0.32946598]
[1740493967383,0.0134272,89123.0,89118.0,0.5428]
[1740493967384,0.3,89122.0,89118.0,0.5428]
[1740493967618,0.468314,89119.0,89118.0,0.5428]
[1740493967796,0.468316,89118.0,89117.0,0.00596598]
[1740493968000,0.0134272,89123.0,89117.0,0.11971351]
[1740493968217,0.0134272,89123.0,89122.0,0.17427398]
[1740493968429,0.0008473,89166.0,89156.0,0.00596598]
[1740493968642,0.0008473,89166.0,89159.0,0.17420398]
[1740493968858,0.0008473,89166.0,89159.0,0.12128345]
[1740493969087,0.0008473,89166.0,89159.0,0.13184186]
[1740493969539,0.02410436,89217.0,89171.0,0.1]
[1740493969770,0.168202,89178.0,89177.0,0.1]
[1740493970428,0.168199,89180.0,89177.0,0.1]
[1740493970644,0.1,89225.0,89179.0,0.1]
[1740493970859,0.168197,89181.0,89180.0,0.11226053]
[1740493971070,0.468197,89181.0,89180.0,0.11226053]
[1740493971313,0.3,89180.0,89171.0,0.1]
[1740493971531,0.3,89178.0,89163.0,0.1]
[1740493971740,0.01454085,89214.0,89154.0,0.0456]
[1740493971741,0.468246,89155.0,89154.0,0.1456]
[1740493971954,0.3,89155.0,89154.0,0.1456]
[1740493972598,0.16824,89158.0,89157.0,0.1]
[1740493972807,0.46824,89158.0,89157.0,0.1]
[1740493973000,0.468246,89155.0,89154.0,0.1456]
[1740493973226,0.168208,89175.0,89174.0,0.1]
[1740493973404,0.16821,89174.0,89173.0,0.1]
[1740493973608,0.46821,89174.0,89173.0,0.1]
[1740493974180,0.16821,89174.0,89173.0,0.1]
[1740493974806,0.16821,89174.0,89173.0,0.11]
[1740493975070,0.3,89163.0,89155.0,0.09042051]
[1740493975274,0.168244,89156.0,89155.0,0.09042051]
[1740493975472,0.168244,89156.0,89155.0,0.19042051]
[1740493976010,0.168246,89155.0,89154.0,0.1456]
[1740493976213,0.468246,89155.0,89154.0,0.1456]
[1740493976878,0.3,89155.0,89154.0,0.1456]
[1740493977212,0.168231,89163.0,89162.0,0.1]
[1740493977518,0.468231,89163.0,89162.0,0.1]
[1740493977725,0.3,89163.0,89162.0,0.21374753]
[1740493977899,0.468236,89160.0,89159.0,0.1]
[1740493978098,0.468236,89160.0,89148.0,0.2]
[1740493978099,0.3,89161.0,89155.0,0.1]
[1740493978299,0.168244,89156.0,89155.0,0.1]
[1740493978453,0.468257,89149.0,89148.0,0.2]
[1740493978658,0.468263,89146.0,89145.0,0.1]
[1740493978939,0.3,89118.0,89117.0,0.1]
[1740493979120,0.468323,89114.0,89113.0,0.1462]
[1740493979341,0.468323,89114.0,89113.0,0.0462]
[1740493979754,0.468331,89110.0,89095.0,0.0824]
[1740493979889,0.468331,89110.0,89109.0,2e-07]
[1740493980739,0.48287185,89110.0,89109.0,2e-07]
[1740493980948,0.1,89121.0,89073.0,0.0476]
[1740493980949,0.468399,89074.0,89073.0,0.1476]
[1740493981201,0.468399,89074.0,89073.0,0.0476]
[1740493981423,0.168427,89059.0,89058.0,0.19042051]
[1740493981627,0.468427,89059.0,89058.0,0.09042051]
[1740493982229,0.468446,89049.0,89047.0,0.1]
[1740493982429,0.168459,89042.0,89041.0,0.1]
[1740493982654,0.468459,89042.0,89041.0,0.1]
[1740493983080,0.44601691,89042.0,89041.0,0.1]
[1740493983289,0.168471,89036.0,89035.0,0.0458]
[1740493983497,0.168537,89001.0,88997.0,0.0823]
[1740493983744,0.168537,89001.0,88994.0,0.0457]
[1740493983957,0.224712,89003.0,88994.0,0.0457]
[1740493984165,0.224712,89003.0,88976.0,0.0823]
[1740493984166,0.168558,88990.0,88976.0,0.0823]
[1740493984374,0.224716,89001.0,88956.0,0.08177]
[1740493984584,0.168645,88944.0,88943.0,0.09042051]
[1740493984797,0.16866,88936.0,88935.0,0.09879215]
[1740493985303,0.16866,88936.0,88935.0,1.5e-07]
[1740493985523,0.5305007,88936.0,88935.0,1.5e-07]
[1740493985740,0.46866,88936.0,88935.0,1.5e-07]
[1740493987147,0.468673,88929.0,88928.0,0.0016946]
[1740493988345,0.3,88929.0,88928.0,0.0016946]
[1740493989166,0.31454085,88929.0,88928.0,6e-07]
[1740493990272,0.3,88929.0,88928.0,6e-07]
[1740493991146,0.31454085,88929.0,88928.0,6e-07]
[1740493992513,0.168673,88930.0,88928.0,6e-07]
[1740493992840,0.3279,88984.0,88928.0,6e-07]
[1740493992841,0.09826619,88968.0,88929.0,0.20416804]
[1740493992962,0.09826619,88968.0,88956.0,0.09042051]
[1740493993386,0.09826619,88968.0,88957.0,0.11374753]
[1740493993588,0.168611,88962.0,88961.0,0.2]
[1740493994044,0.1279213,88968.0,88961.0,0.2]
[1740493994222,0.09826619,88968.0,88961.0,0.2]
[1740493994425,0.09826619,88968.0,88962.0,0.00157357]
[1740493994640,0.3,88963.0,88959.0,0.2]
[1740493994845,0.468615,88960.0,88959.0,0.2]
[1740493995048,0.468653,88940.0,88939.0,0.3235]
[1740493995249,0.16564179,88929.0,88918.0,0.8663]
[1740493995451,0.46564179,88929.0,88918.0,0.3235]
[1740493996441,0.46564179,88929.0,88905.0,0.0494]
[1740493997071,0.55718427,88929.0,88904.0,0.3235]
[1740493997450,0.48018264,88929.0,88891.0,0.0008481]
[1740493997698,0.48018264,88929.0,88892.0,0.2]
[1740493998079,0.46564179,88929.0,88900.0,0.2384372]
[1740493998283,0.46564179,88929.0,88901.0,0.00157457]
[1740493998696,0.46564179,88929.0,88912.0,0.3235]
[1740493999112,0.48018264,88929.0,88912.0,0.3235]
[1740493999358,0.48018264,88929.0,88900.0,0.0134672]
[1740493999565,0.468706,88912.0,88911.0,4e-07]
[1740494000415,0.468727,88901.0,88900.0,6e-07]
[1740494001957,0.033835,88918.0,88900.0,6e-07]
[1740494002136,0.00850783,88938.0,88900.0,6e-07]
[1740494002137,0.168727,88901.0,88900.0,6e-07]
[1740494004832,0.224912,88924.0,88900.0,6e-07]
[1740494004833,0.10853743,88955.0,88901.0,0.168725]
[1740494004974,0.1,88958.0,88906.0,0.09042051]
[1740494005152,0.03382,88958.0,88916.0,0.09042051]
[1740494005352,0.03382,88958.0,88917.0,0.98162182]
[1740494005618,0.168677,88927.0,88926.0,0.09042051]
[1740494006159,0.1,88986.0,88926.0,0.20416804]
[1740494006370,0.168675,88928.0,88927.0,0.5428]
[1740494006579,0.1,88977.0,88926.0,0.09042051]
[1740494006824,0.168671,88930.0,88929.0,0.2]
[1740494007031,0.02,88976.0,88929.0,1.18004753]
[1740494007181,0.16856,88989.0,88946.0,0.0771]
[1740494007384,0.168594,88972.0,88947.0,0.67074753]
[1740494007598,0.168601,88968.0,88953.0,0.09042051]
[1740494007799,0.168597,88970.0,88961.0,0.168612]
[1740494008008,0.224746,88989.0,88962.0,0.43724753]
[1740494008009,0.03059833,88989.0,88962.0,0.43724753]
[1740494008222,0.168607,88964.0,88963.0,0.5428]
[1740494008427,0.168607,88964.0,88963.0,0.3235]
[1740494009049,0.0008483,88976.0,88963.0,0.3235]
[1740494009272,0.0008483,88976.0,88965.0,0.224807]
[1740494009475,0.0008483,88976.0,88964.0,0.11374753]
[1740494009476,0.0008483,88976.0,88964.0,0.5428]
[1740494009699,0.168605,88965.0,88964.0,0.5428]
[1740494010135,0.468605,88965.0,88964.0,0.5428]
[1740494010268,0.468605,88965.0,88963.0,0.5235]
[1740494010269,0.468607,88964.0,88963.0,0.5235]
[1740494010740,0.468607,88964.0,88947.0,0.5428]
[1740494010741,0.468637,88948.0,88947.0,0.5428]
[1740494010996,0.468637,88948.0,88945.0,0.03246965]
[1740494010997,0.468641,88946.0,88945.0,0.03246965]
[1740494011181,0.46867,88931.0,88926.0,0.3235]
[1740494011388,0.3,88931.0,88926.0,0.3235]
[1740494011841,0.224792,88971.0,88934.0,0.168664]
[1740494012046,0.0008483,88976.0,88935.0,0.43882158]
[1740494012047,0.224837,88954.0,88935.0,0.43882158]
[1740494012250,0.0008483,88976.0,88935.0,0.43724753]
[1740494012452,0.0008483,88976.0,88936.0,0.00157384]
[1740494012653,0.1,88996.0,88937.0,0.11374753]
[1740494012858,0.1,89008.0,88938.0,0.54437379]
[1740494013073,0.08082,89007.0,88939.0,0.98004753]
[1740494013302,0.12421751,89016.0,88946.0,0.09042051]
[1740494013527,0.168582,88978.0,88955.0,0.09042051]
[1740494013725,0.133797,89016.0,88956.0,1.02722098]
[1740494013726,0.224748,88989.0,88956.0,1.02722098]